fUST/lending_fUST_20250627
["ID","MTS","AMOUNT","RATE_DAILY","PERIOD"]
[368122542,1751031043704,-460.0,0.00021643,2]
[368122543,1751031043714,-677.9,0.00021643,2]
[368122544,1751031043723,-460.0,0.00021643,2]
[368122545,1751031043734,-746.52,0.00021643,2]
[368122546,1751031043745,-500.0,0.00021686,2]
[368122547,1751031043755,-500.0,0.00021686,2]
[368122548,1751031043764,-500.0,0.00021686,2]
[368122549,1751031043775,-500.0,0.00021686,2]
[368122550,1751031043783,-500.0,0.00021686,2]
[368122551,1751031043793,-154.4173165,0.00021686,2]
[368122552,1751031043803,-500.0,0.00021686,2]
[368122553,1751031043813,-500.0,0.00021686,2]
[368122554,1751031043824,-504.0,0.00021697,2]
[368122555,1751031043834,-1364.75093305,0.00021722,2]
[368122556,1751031043843,-5619.81153914,0.00021762,5]
[368122557,1751031043854,-504.0,0.00021821,2]
[368122558,1751031043863,-12500.0,0.00021873,2]
[368122559,1751031043873,-12500.0,0.00021881,2]
[368122560,1751031043883,-12500.0,0.0002189,2]
[368122561,1751031043893,-12500.0,0.00021899,2]
[368122562,1751031043905,-500.0,0.00021902,2]
[368122563,1751031043915,-460.0,0.00021917,2]
[368122564,1751031043925,-460.0,0.00021917,2]
[368122565,1751031043935,-663.57,0.00021917,2]
[368122566,1751031043944,-460.0,0.00021917,2]
[368122567,1751031043954,-413.4130683,0.00021917,2]
[368122568,1751031043963,-460.0,0.00021917,2]
[368122569,1751031043973,-2172.8,0.00021917,2]
[368122570,1751031043982,-460.0,0.00021917,2]
[368122571,1751031043992,-460.0,0.00021917,2]
[368122572,1751031044002,-460.0,0.00021917,2]
[368122573,1751031044013,-562.41,0.00021917,2]
[368122574,1751031044023,-460.0,0.00021917,2]
[368122575,1751031044033,-1866.01,0.00021917,2]
[368122576,1751031044043,-799.59,0.00021917,2]
[368122577,1751031044054,-460.0,0.00021917,2]
[368122578,1751031044064,-460.0,0.00021917,2]
[368122579,1751031044073,-460.0,0.00021917,2]
[368122580,1751031044083,-460.0,0.00021917,2]
[368122581,1751031044092,-460.0,0.00021917,2]
[368122582,1751031044102,-805.47,0.00021917,2]
[368122583,1751031044111,-460.0,0.00021917,2]
[368122584,1751031044121,-460.0,0.00021917,2]
[368122585,1751031044131,-460.0,0.00021917,2]
[368122586,1751031044141,-1058.8,0.00021917,2]
[368122587,1751031044151,-702.87,0.00021917,2]
[368122588,1751031044160,-460.0,0.00021917,2]
[368122589,1751031044170,-2033.0,0.00021917,2]
[368122590,1751031044180,-460.0,0.00021917,2]
[368122591,1751031044191,-430.01633493,0.00021917,2]
[368122592,1751031044201,-1504.5,0.00021917,2]
[368122593,1751031044212,-1131.52,0.00021917,2]
[368122594,1751031044222,-1784.64,0.00021917,2]
[368122595,1751031044232,-487.57,0.00021917,2]
[368122596,1751031044243,-1564.81,0.00021917,2]
[368122597,1751031044253,-460.0,0.00021917,2]
[368122598,1751031044263,-677.9,0.00021917,2]
[368122599,1751031044273,-460.0,0.00021917,2]
[368122600,1751031044284,-746.52,0.00021917,2]
[368122601,1751031044293,-209.75577767,0.00021918,2]
[368122602,1751031044303,-190.14283766,0.00021929,2]
[368122603,1751031044313,-5619.81153914,0.00021969,6]
[368122604,1751031044323,-500.0,0.00021973,2]
[368122605,1751031044332,-600.0,0.00021973,2]
[368122606,1751031044342,-500.0,0.00021973,2]
[368122607,1751031044352,-500.0,0.00021973,2]
[368122608,1751031044362,-500.0,0.00021973,2]
[368122609,1751031044372,-583.896093,0.00021973,2]
[368122610,1751031044381,-500.0,0.00021973,2]
[368122611,1751031044391,-500.0,0.00021999,2]
[368122612,1751031044544,-500.0,0.00021999,2]
[368122613,1751031044554,-500.0,0.00021999,2]
[368122614,1751031044564,-500.0,0.00021999,2]
[368122615,1751031044573,-500.0,0.00021999,2]
[368122616,1751031044582,-500.0,0.00021999,2]
[368122617,1751031044592,-166.41667518,0.00021999,2]
[368122618,1751031044602,-500.0,0.00021999,2]
[368122619,1751031044611,-213.75309343,0.00022,7]
[368122620,1751031044621,-168.626327,0.00022,7]
[368122621,1751031044632,-168.626327,0.00022,7]
[368122622,1751031044642,-168.626327,0.00022,7]
[368122623,1751031044652,-168.626327,0.00022,7]
[368122624,1751031044661,-168.626327,0.00022,7]
[368122625,1751031044672,-168.626327,0.00022,7]
[368122626,1751031044681,-197.698769,0.00022,7]
[368122627,1751031044691,-197.698769,0.00022,7]
[368122628,1751031044702,-197.698769,0.00022,7]
[368122629,1751031044711,-197.698769,0.00022,7]
[368122630,1751031044721,-197.698769,0.00022,7]
[368122631,1751031044731,-197.698769,0.00022,7]
[368122632,1751031044740,-2000.0,0.00022,2]
[368122633,1751031044750,-2000.0,0.00022,2]
[368122634,1751031044759,-197173.29,0.00022,7]
[368122635,1751031044769,-2802.33,0.00022,7]
[368122636,1751031044779,-14124.45,0.00022,7]
[368122637,1751031044788,-6687.72296349,0.00022,2]
[368122638,1751031044801,-504.0,0.00022152,2]
[368122639,1751031044810,-5619.81153914,0.00022176,6]
[368122640,1751031044819,-460.0,0.00022191,2]
[368122641,1751031044829,-460.0,0.00022191,2]
[368122642,1751031044839,-663.57,0.00022191,2]
[368122643,1751031044848,-460.0,0.00022191,2]
[368122644,1751031044858,-460.0,0.00022191,2]
[368122645,1751031044867,-2172.8,0.00022191,2]
[368122646,1751031044877,-460.0,0.00022191,2]
[368122647,1751031044887,-460.0,0.00022191,2]
[368122648,1751031044897,-460.0,0.00022191,2]
[368122649,1751031044907,-562.41,0.00022191,2]
[368122650,1751031044917,-460.0,0.00022191,2]
[368122651,1751031044927,-1866.01,0.00022191,2]
[368122652,1751031044936,-799.59,0.00022191,2]
[368122653,1751031044947,-460.0,0.00022191,2]
[368122654,1751031044956,-460.0,0.00022191,2]
[368122655,1751031044966,-460.0,0.00022191,2]
[368122656,1751031044976,-460.0,0.00022191,2]
[368122657,1751031044985,-583.72336113,0.00022191,2]
[368122658,1751031044996,-805.47,0.00022191,2]
[368122659,1751031045006,-460.0,0.00022191,2]
[368122660,1751031045015,-352.3809123,0.00022191,2]
[368122661,1751031045026,-460.0,0.00022191,2]
[368122662,1751031045035,-1058.8,0.00022191,2]
[368122663,1751031045045,-702.87,0.00022191,2]
[368122664,1751031045054,-460.0,0.00022191,2]
[368122665,1751031045064,-2033.0,0.00022191,2]
[368122666,1751031045074,-460.0,0.00022191,2]
[368122667,1751031045083,-1504.5,0.00022191,2]
[368122668,1751031045093,-1131.52,0.00022191,2]
[368122669,1751031045103,-1784.64,0.00022191,2]
[368122670,1751031045113,-487.57,0.00022191,2]
[368122671,1751031045122,-1564.81,0.00022191,2]
[368122672,1751031045133,-460.0,0.00022191,2]
[368122673,1751031045142,-677.9,0.00022191,2]
[368122674,1751031045151,-460.0,0.00022191,2]
[368122675,1751031045163,-746.52,0.00022191,2]
[368122676,1751031045172,-2200.0,0.00022208,2]
[368122677,1751031045182,-504.0,0.00022212,2]
[368122678,1751031045193,-1000.0,0.00022234,2]
[368122679,1751031045203,-1000.0,0.00022234,2]
[368122680,1751031045213,-1000.0,0.00022234,2]
[368122681,1751031045223,-1000.0,0.00022234,2]
[368122682,1751031045233,-1000.0,0.00022234,2]
[368122683,1751031045244,-500.0,0.00022234,2]
[368122684,1751031045254,-1000.0,0.00022234,2]
[368122685,1751031045264,-5619.81153914,0.00022383,7]
[368122686,1751031045274,-168.626327,0.000224,7]
[368122687,1751031045283,-168.626327,0.000224,7]
[368122688,1751031045293,-197.698769,0.000224,7]
[368122689,1751031045303,-197.698769,0.000224,7]
[368122690,1751031045313,-1364.75093305,0.00022421,2]
[368122691,1751031045323,-460.0,0.00022465,2]
[368122692,1751031045333,-460.0,0.00022465,2]
[368122693,1751031045342,-663.57,0.00022465,2]
[368122694,1751031045351,-603.59454968,0.00022465,2]
[368122695,1751031045360,-460.0,0.00022465,2]
[368122696,1751031045370,-2172.8,0.00022465,2]
[368122697,1751031045379,-460.0,0.00022465,2]
[368122698,1751031045389,-460.0,0.00022465,2]
[368122699,1751031045398,-460.0,0.00022465,2]
[368122700,1751031045408,-562.41,0.00022465,2]
[368122701,1751031045417,-473.27355747,0.00022465,2]
[368122702,1751031045427,-1866.01,0.00022465,2]
[368122703,1751031045437,-799.59,0.00022465,2]
[368122704,1751031045446,-460.0,0.00022465,2]
[368122705,1751031045456,-460.0,0.00022465,2]
[368122706,1751031045467,-460.0,0.00022465,2]
[368122707,1751031045477,-460.0,0.00022465,2]
[368122708,1751031045486,-805.47,0.00022465,2]
[368122709,1751031045497,-460.0,0.00022465,2]
[368122710,1751031045507,-460.0,0.00022465,2]
[368122711,1751031045517,-1058.8,0.00022465,2]
[368122712,1751031045526,-702.87,0.00022465,2]
[368122713,1751031045536,-460.0,0.00022465,2]
[368122714,1751031045547,-2033.0,0.00022465,2]
[368122715,1751031045556,-460.0,0.00022465,2]
[368122716,1751031045566,-1504.5,0.00022465,2]
[368122717,1751031045575,-1131.52,0.00022465,2]
[368122719,1751031045585,-1784.64,0.00022465,2]
[368122721,1751031045596,-1564.81,0.00022465,2]
[368122722,1751031045606,-487.57,0.00022465,2]
[368122723,1751031045616,-460.0,0.00022465,2]
[368122724,1751031045625,-677.9,0.00022465,2]
[368122725,1751031045635,-460.0,0.00022465,2]
[368122726,1751031045645,-746.52,0.00022465,2]
[368122727,1751031045654,-10241.62216267,0.000225,15]
[368122728,1751031045664,-1000.0,0.00022521,2]
[368122729,1751031045674,-1200.0,0.00022521,2]
[368122731,1751031045683,-1000.0,0.00022521,2]
[368122732,1751031045693,-1000.0,0.00022521,2]
[368122733,1751031045702,-1000.0,0.00022521,2]
[368122734,1751031045712,-1000.0,0.00022521,2]
[368122735,1751031045721,-169.01433676,0.00022585,2]
[368122736,1751031045730,-5619.81153914,0.0002259,7]
[368122737,1751031045740,-34981.49626511,0.000226,5]
[368122738,1751031045749,-304.696181,0.00022603,2]
[368122739,1751031045759,-1600.0,0.0002268,2]
[368122740,1751031045768,-507.8810636,0.00022701,2]
[368122741,1751031045777,-460.0,0.00022739,2]
[368122742,1751031045786,-460.0,0.00022739,2]
[368122743,1751031045796,-663.57,0.00022739,2]
[368122744,1751031045805,-460.0,0.00022739,2]
[368122745,1751031045815,-2172.8,0.00022739,2]
[368122746,1751031045825,-460.0,0.00022739,2]
[368122747,1751031045834,-460.0,0.00022739,2]
[368122748,1751031045843,-460.0,0.00022739,2]
[368122749,1751031045852,-562.41,0.00022739,2]
[368122750,1751031045862,-1866.01,0.00022739,2]
[368122751,1751031045871,-799.59,0.00022739,2]
[368122753,1751031045881,-166.28061685,0.00022739,2]
[368122754,1751031045890,-460.0,0.00022739,2]
[368122755,1751031045899,-460.0,0.00022739,2]
[368122756,1751031045908,-172.03905698,0.00022739,2]
[368122757,1751031045918,-805.47,0.00022739,2]
[368122758,1751031045927,-460.0,0.00022739,2]
[368122759,1751031045936,-564.54,0.00022739,2]
[368122760,1751031045946,-1058.8,0.00022739,2]
[368122761,1751031045955,-702.87,0.00022739,2]
[368122762,1751031045964,-460.0,0.00022739,2]
[368122763,1751031045973,-2033.0,0.00022739,2]
[368122764,1751031045983,-460.0,0.00022739,2]
[368122765,1751031045993,-1504.5,0.00022739,2]
[368122766,1751031046002,-1131.52,0.00022739,2]
[368122767,1751031046012,-1784.64,0.00022739,2]
[368122768,1751031046022,-1564.81,0.00022739,2]
[368122769,1751031046031,-487.57,0.00022739,2]
[368122770,1751031046041,-460.0,0.00022739,2]
[368122771,1751031046051,-677.9,0.00022739,2]
[368122772,1751031046060,-460.0,0.00022739,2]
[368122773,1751031046070,-746.52,0.00022739,2]
[368122774,1751031046080,-1600.0,0.00022749,2]
[368122775,1751031046090,-1400.0,0.0002275,2]
[368122776,1751031046099,-1400.0,0.00022752,2]
[368122777,1751031046109,-500.0,0.00022756,2]
[368122778,1751031046118,-1400.0,0.00022757,2]
[368122779,1751031046128,-587.0,0.00022776,2]
[368122780,1751031046137,-1500.0,0.00022782,2]
[368122781,1751031046147,-1500.0,0.00022782,2]
[368122782,1751031046157,-1500.0,0.00022782,2]
[368122783,1751031046167,-1500.0,0.00022782,2]
[368122784,1751031046177,-1500.0,0.00022782,2]
[368122785,1751031046186,-1500.0,0.00022782,2]
[368122786,1751031046196,-5619.81153914,0.00022797,7]
[368122787,1751031046206,-900.0,0.00022803,2]
[368122788,1751031046216,-1400.0,0.00022821,2]
[368122789,1751031046226,-1400.0,0.00022853,2]
[368122790,1751031046236,-900.0,0.00022864,2]
[368122791,1751031046246,-1600.0,0.00022865,2]
[368122792,1751031046256,-168.626327,0.0002287,7]
[368122793,1751031046265,-168.626327,0.0002287,7]
[368122794,1751031046276,-197.698769,0.0002287,7]
[368122795,1751031046286,-197.698769,0.0002287,7]
[368122796,1751031046295,-190.14283766,0.0002288,2]
[368122797,1751031046305,-1600.0,0.00022889,2]
[368122798,1751031046315,-1400.0,0.00022913,2]
[368122799,1751031046324,-500.0,0.00022956,2]
[368122800,1751031046333,-1500.0,0.0002298,2]
[368122801,1751031046343,-730.4900384,0.00022986,2]
[368122802,1751031046352,-1600.0,0.00022989,2]
[368122803,1751031046362,-900.0,0.00022991,2]
[368122804,1751031046371,-1600.0,0.00022999,2]
[368122805,1751031046381,-213.75309343,0.00023,10]
[368122806,1751031046390,-168.626327,0.00023,7]
[368122807,1751031046399,-2030.75,0.00023,2]
[368122808,1751031046408,-168.626327,0.00023,7]
[368122809,1751031046418,-197.698769,0.00023,7]
[368122810,1751031046427,-197.698769,0.00023,7]
[368122811,1751031046437,-2000.0,0.00023,2]
[368122812,1751031046446,-2000.0,0.00023,2]
[368122813,1751031046456,-150.0,0.00023,5]
[368122814,1751031046466,-500.0,0.00023,8]
[368122815,1751031046476,-230.26210603,0.00023,3]
[368122816,1751031046486,-214.91804724,0.00023,3]
[368122817,1751031046496,-160.0,0.00023,3]
[368122818,1751031046506,-836.98798914,0.00023,3]
[368122819,1751031046515,-50000.0,0.00023,15]
[368122820,1751031046524,-160.0,0.00023,3]
[368122821,1751031046534,-160.0,0.00023,3]
[368122822,1751031046545,-330.41035757,0.00023,2]
[368122823,1751031046555,-5619.81153914,0.00023003,8]
[368122824,1751031046564,-223.0315306,0.00023008,2]
[368122825,1751031046574,-1400.0,0.00023008,2]
[368122826,1751031046583,-460.0,0.00023013,2]
[368122827,1751031046592,-537.45277563,0.00023013,2]
[368122828,1751031046602,-663.57,0.00023013,2]
[368122829,1751031046611,-460.0,0.00023013,2]
[368122830,1751031046620,-2172.8,0.00023013,2]
[368122831,1751031046629,-460.0,0.00023013,2]
[368122832,1751031046638,-460.0,0.00023013,2]
[368122833,1751031046647,-479.68685134,0.00023013,2]
[368122834,1751031046657,-562.41,0.00023013,2]
[368122835,1751031046666,-1866.01,0.00023013,2]
[368122836,1751031046675,-799.59,0.00023013,2]
[368122837,1751031046685,-460.0,0.00023013,2]
[368122838,1751031046694,-460.0,0.00023013,2]
[368122839,1751031046704,-805.47,0.00023013,2]
[368122840,1751031046713,-460.0,0.00023013,2]
[368122841,1751031046722,-1058.8,0.00023013,2]
[368122842,1751031046732,-702.87,0.00023013,2]
[368122843,1751031046744,-460.0,0.00023013,2]
[368122844,1751031046753,-2033.0,0.00023013,2]
[368122845,1751031046763,-460.0,0.00023013,2]
[368122846,1751031046773,-1504.5,0.00023013,2]
[368122847,1751031046782,-1131.52,0.00023013,2]
[368122848,1751031046792,-1784.64,0.00023013,2]
[368122849,1751031046803,-1564.81,0.00023013,2]
[368122850,1751031046812,-487.57,0.00023013,2]
[368122851,1751031046822,-460.0,0.00023013,2]
[368122852,1751031046832,-677.9,0.00023013,2]
[368122853,1751031046841,-460.0,0.00023013,2]
[368122854,1751031046852,-746.52,0.00023013,2]
[368122855,1751031046862,-504.0,0.00023027,2]
[368122856,1751031046871,-1400.0,0.0002303,2]
[368122857,1751031046881,-1400.0,0.00023041,2]
[368122858,1751031046891,-330.56958791,0.00023068,2]
[368122859,1751031046900,-1800.0,0.00023068,2]
[368122860,1751031046910,-1500.0,0.00023068,2]
[368122861,1751031046919,-1500.0,0.00023068,2]
[368122862,1751031046928,-500.56304579,0.00023068,2]
[368122863,1751031046965,-1001.34400268,0.00023068,2]
[368122864,1751031046974,-150.0,0.00023073,2]
[368122865,1751031046983,-150.0,0.00023073,2]
[368122866,1751031046998,-900.0,0.00023076,2]
[368122867,1751031047008,-900.0,0.00023087,2]
[368122868,1751031047017,-213.75309343,0.000231,30]
[368122869,1751031047027,-197173.29,0.000231,7]
[368122870,1751031047036,-14124.45,0.000231,7]
[368122871,1751031047046,-432.12858055,0.00023103,2]
[368122872,1751031047056,-500.0,0.00023111,2]
[368122873,1751031047066,-1400.0,0.00023132,2]
[368122874,1751031047076,-500.0,0.00023135,2]
[368122875,1751031047086,-1400.0,0.00023145,2]
[368122876,1751031047095,-1400.0,0.00023162,2]
[368122877,1751031047106,-504.0,0.00023167,2]
[368122878,1751031047115,-1600.0,0.00023173,2]
[368122879,1751031047125,-1400.0,0.00023177,2]
[368122880,1751031047134,-499.3,0.00023183,2]
[368122881,1751031047144,-504.0,0.00023188,2]
[368122882,1751031047153,-2802.33,0.000232,7]
[368122883,1751031047162,-5619.81153914,0.0002321,8]
[368122884,1751031047172,-1400.0,0.00023229,2]
[368122885,1751031047181,-1600.0,0.00023275,2]
[368122886,1751031047190,-460.0,0.00023287,2]
[368122887,1751031047199,-663.57,0.00023287,2]
[368122888,1751031047209,-460.0,0.00023287,2]
[368122889,1751031047219,-2172.8,0.00023287,2]
[368122890,1751031047230,-460.0,0.00023287,2]
[368122891,1751031047241,-348.66653532,0.00023287,2]
[368122892,1751031047251,-562.41,0.00023287,2]
[368122893,1751031047261,-1866.01,0.00023287,2]
[368122894,1751031047271,-799.59,0.00023287,2]
[368122895,1751031047280,-460.0,0.00023287,2]
[368122896,1751031047290,-460.0,0.00023287,2]
[368122897,1751031047299,-805.47,0.00023287,2]
[368122898,1751031047308,-565.8873764,0.00023287,2]
[368122899,1751031047318,-1058.8,0.00023287,2]
[368122900,1751031047327,-702.87,0.00023287,2]
[368122901,1751031047336,-460.0,0.00023287,2]
[368122902,1751031047346,-2033.0,0.00023287,2]
[368122903,1751031047355,-460.0,0.00023287,2]
[368122904,1751031047364,-1504.5,0.00023287,2]
[368122905,1751031047374,-1131.52,0.00023287,2]
[368122906,1751031047383,-1784.64,0.00023287,2]
[368122907,1751031047392,-1564.81,0.00023287,2]
[368122908,1751031047401,-487.57,0.00023287,2]
[368122909,1751031047411,-460.0,0.00023287,2]
[368122910,1751031047420,-677.9,0.00023287,2]
[368122911,1751031047430,-460.0,0.00023287,2]
[368122912,1751031047439,-746.52,0.00023287,2]
[368122913,1751031047448,-168.626327,0.0002329,7]
[368122914,1751031047461,-168.626327,0.0002329,7]
[368122915,1751031047471,-197.698769,0.0002329,7]
[368122916,1751031047481,-197.698769,0.0002329,7]
[368122917,1751031047490,-546.13404743,0.0002329,4]
[368122918,1751031047499,-546.13404743,0.0002329,4]
[368122919,1751031047509,-546.13404743,0.0002329,4]
[368122920,1751031047519,-546.13404743,0.0002329,4]
[368122921,1751031047528,-546.13404743,0.0002329,4]
[368122922,1751031047538,-546.13404743,0.0002329,4]
[368122923,1751031047547,-546.13404743,0.0002329,4]
[368122924,1751031047557,-546.13404743,0.0002329,4]
[368122925,1751031047566,-546.13404743,0.0002329,4]
[368122926,1751031047575,-546.13404743,0.0002329,4]
[368122927,1751031047585,-546.13404743,0.0002329,4]
[368122928,1751031047595,-546.13404743,0.0002329,4]
[368122929,1751031047604,-546.13404743,0.0002329,4]
[368122930,1751031047614,-546.13404743,0.0002329,4]
[368122931,1751031047624,-546.13404743,0.0002329,4]
[368122932,1751031047634,-546.13404743,0.0002329,4]
[368122933,1751031047644,-546.13404743,0.0002329,4]
[368122934,1751031047654,-546.13404743,0.0002329,4]
[368122935,1751031047663,-546.13404743,0.0002329,4]
[368122936,1751031047673,-546.13,0.0002329,4]
[368122937,1751031047682,-1274.31277733,0.0002329,4]
[368122938,1751031047692,-1274.31277733,0.0002329,4]
[368122939,1751031047702,-1274.31277733,0.0002329,4]
[368122940,1751031047712,-1274.31277733,0.0002329,4]
[368122941,1751031047721,-1274.31277733,0.0002329,4]
[368122942,1751031047729,-1274.31277733,0.0002329,4]
[368122943,1751031047738,-1274.31277733,0.0002329,4]
[368122944,1751031047748,-1274.31277733,0.0002329,4]
[368122945,1751031047757,-1274.31277733,0.0002329,4]
[368122946,1751031047766,-1274.31277733,0.0002329,4]
[368122947,1751031047775,-1274.31277733,0.0002329,4]
[368122948,1751031047785,-1274.31277733,0.0002329,4]
[368122949,1751031047794,-1274.31277733,0.0002329,4]
[368122950,1751031047805,-1274.31277733,0.0002329,4]
[368122951,1751031047814,-1274.31277733,0.0002329,4]
[368122952,1751031047823,-1274.31277733,0.0002329,4]
[368122953,1751031047833,-1274.31277733,0.0002329,4]
[368122954,1751031047842,-1274.31277733,0.0002329,4]
[368122955,1751031047851,-1274.31277733,0.0002329,4]
[368122956,1751031047860,-1274.31,0.0002329,4]
[368122957,1751031047869,-298.10111853,0.0002329,4]
[368122958,1751031047878,-298.10111853,0.0002329,4]
[368122959,1751031047887,-298.10111853,0.0002329,4]
[368122960,1751031047896,-298.10111853,0.0002329,4]
[368122961,1751031047906,-298.10111853,0.0002329,4]
[368122962,1751031047915,-298.10111853,0.0002329,4]
[368122963,1751031047924,-298.10111853,0.0002329,4]
[368122964,1751031047933,-298.10111853,0.0002329,4]
[368122965,1751031047942,-298.10111853,0.0002329,4]
[368122966,1751031047952,-298.10111853,0.0002329,4]
[368122967,1751031047961,-298.10111853,0.0002329,4]
[368122968,1751031047971,-298.10111853,0.0002329,4]
[368122969,1751031047980,-298.10111853,0.0002329,4]
[368122970,1751031047988,-298.10111853,0.0002329,4]
[368122971,1751031047998,-298.10111853,0.0002329,4]
[368122972,1751031048007,-298.10111853,0.0002329,4]
[368122973,1751031048017,-298.10111853,0.0002329,4]
[368122974,1751031048027,-298.10111853,0.0002329,4]
[368122975,1751031048037,-298.10111853,0.0002329,4]
[368122976,1751031048046,-298.1,0.0002329,4]
[368122977,1751031048056,-695.56927658,0.0002329,4]
[368122978,1751031048066,-695.56927658,0.0002329,4]
[368122979,1751031048075,-695.56927658,0.0002329,4]
[368122980,1751031048085,-695.56927658,0.0002329,4]
[368122981,1751031048094,-695.56927658,0.0002329,4]
[368122982,1751031048104,-695.56927658,0.0002329,4]
[368122983,1751031048114,-695.56927658,0.0002329,4]
[368122984,1751031048124,-695.56927658,0.0002329,4]
[368122985,1751031048134,-695.56927658,0.0002329,4]
[368122986,1751031048144,-695.56927658,0.0002329,4]
[368122987,1751031048154,-695.56927658,0.0002329,4]
[368122988,1751031048175,-695.56927658,0.0002329,4]
[368122989,1751031048185,-695.56927658,0.0002329,4]
[368122990,1751031048195,-695.56927658,0.0002329,4]
[368122991,1751031048206,-695.56927658,0.0002329,4]
[368122992,1751031048217,-695.56927658,0.0002329,4]
[368122993,1751031048227,-695.56927658,0.0002329,4]
[368122994,1751031048238,-695.56927658,0.0002329,4]
[368122995,1751031048249,-695.56927658,0.0002329,4]
[368122996,1751031048259,-695.56,0.0002329,4]
[368122997,1751031048269,-504.0,0.00023303,2]
[368122998,1751031048280,-1400.0,0.00023316,2]
[368122999,1751031048290,-2000.0,0.0002333,2]
[368123000,1751031048300,-2000.0,0.0002333,2]
[368123001,1751031048310,-1415.91753784,0.0002333,2]
[368123002,1751031048320,-2000.0,0.0002333,2]
[368123003,1751031048330,-2000.0,0.0002333,2]
[368123004,1751031048340,-2000.0,0.0002333,2]
[368123005,1751031048350,-500.0,0.00023332,2]
[368123006,1751031048360,-500.0,0.00023348,2]
[368123007,1751031048370,-151.0,0.0002337,2]
[368123008,1751031048380,-151.0,0.0002337,2]
[368123009,1751031048390,-1400.0,0.0002338,2]
[368123010,1751031048400,-356.8872515,0.00023397,2]
[368123011,1751031048410,-151.0,0.00023397,2]
[368123012,1751031048420,-900.0,0.00023416,2]
[368123013,1751031048430,-1600.0,0.00023416,2]
[368123014,1751031048440,-5619.81153914,0.00023417,9]
[368123015,1751031048450,-1600.0,0.00023419,2]
[368123016,1751031048460,-151.0,0.00023425,2]
[368123017,1751031048474,-900.0,0.00023425,2]
[368123018,1751031048484,-219.0,0.0002343,8]
[368123019,1751031048494,-194.39251329,0.00023438,2]
[368123020,1751031048505,-217.90292315,0.00023452,2]
[368123021,1751031048515,-504.0,0.00023493,2]
[368123022,1751031048526,-1000.0,0.000235,2]
[368123023,1751031048536,-900.0,0.00023532,2]
[368123024,1751031048547,-1400.0,0.00023534,2]
[368123025,1751031048557,-504.0,0.00023558,2]
[368123026,1751031048567,-371.93491498,0.00023561,2]
[368123027,1751031048576,-663.57,0.00023561,2]
[368123028,1751031048587,-460.0,0.00023561,2]
[368123029,1751031048596,-2172.8,0.00023561,2]
[368123030,1751031048607,-460.0,0.00023561,2]
[368123031,1751031048617,-562.41,0.00023561,2]
[368123032,1751031048627,-1866.01,0.00023561,2]
[368123033,1751031048638,-799.59,0.00023561,2]
[368123034,1751031048648,-460.0,0.00023561,2]
[368123035,1751031048658,-460.0,0.00023561,2]
[368123036,1751031048668,-329.96,0.00023561,2]
[368123037,1751031048678,-329.96,0.00023561,2]
[368123038,1751031048688,-329.96,0.00023561,2]
[368123039,1751031048698,-329.96,0.00023561,2]
[368123040,1751031048708,-329.96,0.00023561,2]
[368123041,1751031048718,-329.96,0.00023561,2]
[368123042,1751031048729,-329.96,0.00023561,2]
[368123043,1751031048739,-329.96,0.00023561,2]
[368123044,1751031048749,-329.96,0.00023561,2]
[368123045,1751031048759,-329.96,0.00023561,2]